[Event "16th Deltalift Open 2019"]
[Site "Halmstad"]
[Date "2019.06.01"]
[Round "8.24"]
[White "Troberg Eskola, Love"]
[Black "Olsson, Thomas"]
[Result "1/2-1/2"]
[ECO "C71"]
[WhiteElo "2134"]
[BlackElo "1951"]
[Annotator "ChessBase"]
[PlyCount "61"]
[EventDate "2019.05.30"]
[EventType "swiss"]
[EventCountry "SWE"]
[SourceTitle "playchess.com"]
[Source "ChessBase"]
[SourceQuality "1"]
[TimeControl "40/5400+30:1800+30"]

1. e4 {[%emt 0:00:00]} e5 {[%emt 0:00:00]} 2. Nf3 {[%emt 0:00:00]} Nc6 {[%emt 0:00:04]} 3. Bb5 {[%emt 0:00:00]} a6 {[%emt 0:01:12]} 4. Ba4 {[%emt 0:00:01]} d6 {[%emt 0:01:21]} 5. d4 {[%emt 0:00:24]} b5 {[%emt 0:01:48]} 6. Bb3 {[%emt 0:00:17]} Nxd4 {[%emt 0:00:24]} 7. Nxd4 {[%emt 0:00:13]} exd4 {[%emt 0:00:12]} 8. c3 {[%emt 0:00:56]} Bb7 {[%emt 0:01:56]} 9. O-O {[%emt 0:00:42]} Nf6 {[%emt 0:01:25]} 10. Re1 {[%emt 0:03:35]} Be7 {[%emt 0:00:13]} 11. Bc2 {[%emt 0:00:32]} dxc3 {[%emt 0:05:37]} 12. Nxc3 {[%emt 0:00:08]} O-O {[%emt 0:00:49]} 13. Qd3 {[%emt 0:02:45]} Re8 {[%emt 0:09:28]} 14. Bg5 {[%emt 0:04:53]} g6 {[%emt 0:00:49]} 15. f4 {[%emt 0:06:26]} b4 {[%emt 0:07:41]} 16. Nd1 {[%emt 0:04:10]} Nxe4 {[%emt 0:09:33]} 17. Bxe7 {[%emt 0:02:04]} Rxe7 {[%emt 0:01:31]} 18. Ne3 {[%emt 0:02:10]} d5 {[%emt 0:12:19]} 19. Rad1 {[%emt 0:00:34]} c6 {[%emt 0:00:33]} 20. Ng4 {[%emt 0:01:22]} Qb6+ {[%emt 0:01:13]} 21. Kh1 {[%emt 0:00:17]} Kg7 {[%emt 0:01:18]} 22. Rxe4 {[%emt 0:00:47]} dxe4 {[%emt 0:03:06]} 23. Qd6 {[%emt 0:00:34]} Re6 {[%emt 0:00:40]} 24. Qxe6 {[%emt 0:00:16]} fxe6 {[%emt 0:00:51]} 25. Rd7+ {[%emt 0:00:05]} Kf8 {[%emt 0:01:53]} 26. Nf6 {[%emt 0:00:05]} Rd8 {[%emt 0:04:46]} 27. Nxh7+ {[%emt 0:00:24]} Kg8 {[%emt 0:00:19]} 28. Nf6+ {[%emt 0:00:06]} Kf8 {[%emt 0:00:10]} 29. Nh7+ {[%emt 0:00:06]} Kg8 {[%emt 0:00:13]} 30. Nf6+ {[%emt 0:00:06]} Kf8 {[%emt 0:00:18]} 31. Nh7+ {[%emt 0:00:08]} 1/2-1/2